bitfinex/quotes_ETHUSD_20250909
["timestamp","ask_amount","ask_price","bid_price","bid_amount"]
[1757416700957,3.09427877,4343.9,4343.8,2.78680001]
[1757416704659,0.793,4343.9,4343.8,2.78680001]
[1757416705941,0.001,4343.9,4343.8,3.06568001]
[1757416707226,0.001,4343.9,4343.8,2.78680001]
[1757416708485,0.001,4343.9,4343.8,2.33950001]
[1757416708804,3.09507877,4343.9,4343.8,2.78680001]
[1757416709163,0.001,4343.9,4343.8,2.78680001]
[1757416710477,0.793,4343.9,4343.8,2.78680001]
[1757416710688,0.001,4343.9,4343.8,2.78680001]
[1757416710885,0.793,4343.9,4343.8,2.78680001]
[1757416711593,0.001,4343.9,4343.8,2.78680001]
[1757416711899,0.793,4343.9,4343.8,2.78680001]
[1757416712268,3.09507877,4343.9,4343.8,2.78680001]
[1757416713209,3.09507877,4343.9,4343.8,2.33950001]
[1757416713504,3.38347877,4343.9,4343.8,0.00200001]
[1757416713708,3.99910441,4343.9,4343.8,0.00200001]
[1757416714262,3.38347877,4343.9,4343.8,0.00200001]
[1757416715886,0.793,4343.9,4343.8,2.34180001]
[1757416716114,0.793,4343.9,4343.8,2.80730001]
[1757416717383,3.09507877,4343.9,4343.8,2.80730001]
[1757416718191,0.793,4343.9,4343.8,2.34180001]
[1757416718396,0.793,4343.9,4343.8,2.80730001]
[1757416727154,3.38267877,4343.9,4343.8,0.00200001]
[1757416727516,3.85247877,4343.9,4343.8,0.00200001]
[1757416727745,4.83702416,4343.9,4343.8,0.00200001]
[1757416728318,3.85247877,4343.9,4343.8,0.00200001]
[1757416728953,3.09427877,4343.9,4343.8,0.31040001]
[1757416729154,0.7922,4343.9,4343.8,2.34180001]
[1757416729358,0.7922,4343.9,4343.8,2.80730001]
[1757416730112,0.7922,4343.9,4343.8,2.34180001]
[1757416730313,3.38267877,4343.9,4343.8,0.00200001]
[1757416730558,5.03604755,4343.9,4343.8,0.00200001]
[1757416731555,4.56624755,4343.9,4343.8,0.00200001]
[1757416731742,5.03604755,4343.9,4343.8,0.00200001]
[1757416735117,6.55294755,4343.9,4343.8,0.00200001]
[1757416735457,6.89764968,4343.9,4343.8,0.00200001]
[1757416736235,6.09418477,4343.7,4343.6,1e-08]
[1757416736448,6.4388869,4343.7,4343.6,1e-08]
[1757416736650,8.7139869,4343.7,4343.6,1e-08]
[1757416737166,8.71382531,4343.7,4343.6,1e-08]
[1757416740541,7.19692531,4343.7,4343.6,1e-08]
[1757416740782,8.37229927,4343.7,4343.6,1e-08]
[1757416740982,8.15702203,4343.7,4343.6,1e-08]
[1757416741170,7.55795873,4343.7,4343.6,1e-08]
[1757416741375,6.47755873,4343.7,4343.6,0.30840001]
[1757416741559,6.77085873,4343.7,4343.6,1e-08]
[1757416741945,7.26955873,4343.7,4343.6,1e-08]
[1757416742287,4.26955873,4343.7,4343.6,2.25960001]
[1757416742580,2.30218477,4343.7,4343.6,2.72040001]
[1757416742781,3.09418477,4343.7,4343.6,2.72040001]
[1757416743890,3.09418477,4343.7,4343.6,2.25960001]
[1757416744300,3.09418477,4343.7,4343.6,2.72040001]
[1757416749864,3.09418477,4343.7,4343.6,2.25960001]
[1757416750271,3.09418477,4343.7,4343.6,1e-08]
[1757416750571,3.09418477,4343.7,4343.6,0.31300001]
[1757416750784,0.792,4343.5,4343.3,2.4094]
[1757416750980,3.09434378,4343.4,4343.3,0.4628]
[1757416751294,0.792,4343.4,4343.3,0.7758]
[1757416751456,0.792,4343.4,4343.3,2.7224]
[1757416753334,0.7912,4343.4,4343.3,3.22889006]
[1757416753613,0.0002,4343.9,4343.6,0.002]
[1757416753918,0.1144,4343.4,4343.3,2.80887866]
[1757416754197,0.1144,4343.6,4343.4,2.30231546]
[1757416754410,0.1144,4343.6,4343.5,2.80202524]
[1757416754613,0.1144,4343.6,4343.5,2.2596]
[1757416754973,0.1144,4343.6,4343.5,4.56189077]
[1757416755629,0.1144,4343.6,4343.5,2.2596]
[1757416755911,0.1144,4343.6,4343.5,2.7204]
[1757416756466,0.1144,4343.6,4343.5,3.22267282]
[1757416756913,0.1144,4343.6,4343.5,5.52496359]
[1757416757120,0.1144,4343.6,4343.5,3.22267282]
[1757416760297,0.1144,4343.6,4343.5,2.7204]
[1757416762522,0.1144,4343.6,4343.5,5.02269077]
[1757416763389,0.1144,4343.6,4343.5,2.2596]
[1757416763721,0.792,4343.5,4343.1,1.9886]
[1757416763926,0.1144,4343.2,4343.1,0.042]
[1757416764124,0.4077,4343.2,4343.1,0.042]
[1757416764294,0.1144,4343.2,4343.1,2.3016]
[1757416766106,0.1144,4343.2,4343.1,1.9886]
[1757416766625,0.1144,4343.2,4343.1,0.042]
[1757416768818,0.1144,4343.2,4343.1,1.9886]
[1757416772252,0.8428,4343.2,4343.1,0.042]
[1757416773648,1.6348,4343.2,4343.1,0.042]
[1757416773852,3.9372498,4343.2,4343.1,0.042]
[1757416774011,5.79120956,4343.2,4343.1,0.042]
[1757416775624,7.02120956,4343.2,4343.1,0.042]
[1757416775947,4.71875976,4343.2,4343.1,0.042]
[1757416776151,7.02120956,4343.2,4343.1,0.042]
[1757416776355,4.0948,4343.2,4343.1,0.042]
[1757416777422,4.8832,4343.2,4343.1,0.042]
[1757416777828,5.3248,4343.2,4343.1,0.042]
[1757416778462,4.8832,4343.2,4343.1,0.042]
[1757416778842,6.1132,4343.2,4343.1,0.042]
[1757416779171,5.712,4343.2,4343.1,2.2439]
[1757416779329,5.712,4343.2,4343.1,2.47309261]
[1757416779330,4.9192,4343.2,4343.1,2.47309261]
[1757416779853,4.9192,4343.2,4343.1,4.77559543]
[1757416780210,6.1492,4343.2,4343.1,4.77559543]
[1757416780411,6.1492,4343.2,4343.1,5.20699543]
[1757416780813,6.1492,4343.2,4343.1,2.47309261]
[1757416781328,6.1492,4343.2,4343.1,4.77559543]
[1757416781860,7.3792,4343.2,4343.1,2.47309261]
[1757416782161,7.3792,4343.2,4343.1,2.2439]
[1757416782356,7.3792,4343.2,4343.1,0.042]
[1757416782720,7.3792,4343.2,4343.1,1.9538]
[1757416782919,7.3792,4343.2,4343.1,2.2439]
[1757416783150,8.6092,4343.2,4343.1,2.2439]
[1757416785018,8.6092,4343.2,4343.1,4.97780282]
[1757416785228,9.8392,4343.2,4343.1,5.40047]
[1757416785653,9.8392,4343.2,4343.1,3.09796718]
[1757416786352,9.8392,4343.2,4343.1,2.2439]
[1757416786553,10.126,4343.2,4343.1,0.042]
[1757416786854,11.7976,4343.2,4343.1,0.042]
[1757416787264,11.0692,4343.2,4343.1,2.2439]
[1757416788048,12.2992,4343.2,4343.1,2.2439]
[1757416789465,13.5292,4343.2,4343.1,2.2439]
[1757416790772,14.7592,4343.2,4343.1,2.2439]
[1757416792078,14.7592,4343.2,4343.1,4.54640282]
[1757416792373,14.7592,4343.2,4343.1,3.09796752]
[1757416792578,15.9902,4343.2,4343.1,3.09796752]
[1757416793079,15.9902,4343.2,4343.1,2.2439]
[1757416793935,15.9902,4343.2,4343.1,4.54640282]
[1757416794442,17.2202,4343.2,4343.1,2.2439]
[1757416794670,17.2202,4343.2,4343.1,4.54640282]
[1757416795498,17.2202,4343.2,4343.1,5.78166716]
[1757416796165,18.4502,4343.2,4343.1,5.78166716]
[1757416797117,18.4502,4343.2,4343.1,6.63573429]
[1757416797268,19.6802,4343.2,4343.1,5.40046995]
[1757416797809,19.6802,4343.2,4343.1,5.83186995]
[1757416798920,19.6802,4343.2,4343.1,5.40046995]
[1757416799263,20.9102,4343.2,4343.1,5.40046995]
[1757416800319,21.197,4343.2,4343.1,0.89606713]
[1757416800522,3.09460885,4342.9,4342.8,0.025]
[1757416800888,5.20130885,4342.9,4342.8,0.025]
[1757416801082,7.46921682,4342.9,4342.8,0.025]
[1757416805633,7.46841682,4342.9,4342.8,0.025]
[1757416811759,6.09011682,4342.9,4342.8,0.025]
[1757416812602,6.09011682,4342.9,4342.8,0.027]
[1757416814183,0.69083913,4343.0,4342.8,2.2484]
[1757416814470,0.001,4343.1,4342.9,0.78266377]
[1757416814602,0.001,4343.1,4342.8,2.2484]
[1757416814802,0.1144,4343.0,4342.9,1.9361]
[1757416815043,0.1144,4343.0,4342.9,2.2214]
[1757416815251,0.1144,4343.0,4342.9,2.6856]
[1757416815406,0.1144,4343.0,4342.9,4.98820885]
[1757416815606,0.001,4343.1,4343.0,5.30255583]
[1757416815837,0.001,4343.1,4343.0,7.70285583]
[1757416816038,0.001,4343.1,4343.0,7.98815583]
[1757416816245,0.001,4343.1,4343.0,9.0199323]
[1757416816438,0.001,4343.1,4343.0,9.1343323]
[1757416817330,0.001,4343.1,4343.0,39.1343323]
[1757416822061,0.001,4343.1,4343.0,8.6701323]
[1757416822273,0.001,4343.1,4343.0,9.1343323]
[1757416824281,0.001,4343.1,4343.0,39.1343323]
[1757416825755,0.001,4343.1,4343.0,8.6701323]
[1757416826455,0.001,4343.1,4343.0,9.1343323]
[1757416831661,0.0002,4343.1,4343.0,8.6701323]
[1757416831862,0.7564,4343.1,4343.0,3.1144]
[1757416832085,0.1144,4343.0,4342.8,0.027]
[1757416832466,1.9862,4342.9,4342.8,0.027]
[1757416833679,1.9862,4342.9,4342.8,32.2431]
[1757416833680,1.23,4342.9,4342.8,32.2431]
[1757416833878,1.23,4342.9,4342.8,4.54576187]
[1757416834288,2.46,4342.9,4342.8,4.54576187]
[1757416835722,3.69,4342.9,4342.8,4.54576187]
[1757416837107,4.92,4342.9,4342.8,4.54576187]
[1757416837666,4.92,4342.9,4342.8,0.027]
[1757416837911,5.2153,4342.9,4342.8,2.32966187]
[1757416838217,5.2153,4342.9,4342.8,0.027]
[1757416838880,5.2153,4342.9,4342.8,2.32966187]
[1757416839288,6.9062,4342.9,4342.8,2.32966187]
[1757416839483,6.4453,4342.9,4342.8,2.32966187]
[1757416839692,6.15,4342.9,4342.8,2.32966187]
[1757416839911,6.15,4342.9,4342.8,4.23826187]
[1757416840230,6.15,4342.9,4342.8,5.63497706]
[1757416840790,7.38,4342.9,4342.8,5.63497706]
[1757416841131,7.38,4342.9,4342.8,4.53576187]
[1757416842418,8.61,4342.9,4342.8,4.53576187]
[1757416843334,8.61,4342.9,4342.8,5.77248532]
[1757416844032,9.84,4342.9,4342.8,5.77248532]
[1757416844942,9.84,4342.9,4342.8,8.65472706]
[1757416848223,9.84,4342.9,4342.8,7.53576187]
[1757416850153,10.1353,4342.9,4342.8,5.31966187]
[1757416850661,9.84,4342.9,4342.8,7.22826187]
[1757416852018,9.841,4342.9,4342.8,7.22826187]
[1757416852238,9.841,4342.9,4342.8,7.53576187]
[1757416856178,9.841,4342.9,4342.8,8.53105471]
[1757416857351,9.841,4342.9,4342.8,7.53576187]
[1757416857752,9.8402,4342.9,4342.8,7.53576187]
[1757416858355,9.8402,4342.9,4342.8,37.65016187]
[1757416860396,10.1355,4342.9,4342.8,5.43406187]
[1757416860600,9.8402,4342.9,4342.8,17.34266187]
[1757416860898,9.8402,4342.9,4342.8,47.34266187]
[1757416861094,9.8402,4342.9,4342.8,7.65016187]
[1757416861798,9.8402,4342.9,4342.8,37.65016187]
[1757416861998,9.8402,4342.9,4342.8,38.11086187]
[1757416862309,9.8402,4342.9,4342.8,37.65016187]
[1757416865493,10.5895,4342.9,4342.8,5.43406187]
[1757416865810,10.5895,4342.9,4342.8,15.43406187]
[1757416865962,9.8402,4342.9,4342.8,45.43406187]
[1757416866170,9.8402,4342.9,4342.8,7.52436187]
[1757416867463,9.8402,4342.9,4342.8,37.52436187]
[1757416868906,9.8402,4342.9,4342.8,37.20886187]
[1757416869207,1.231,4344.1,4342.9,3.0]
[1757416869390,1.231,4344.1,4343.5,2.30229077]
[1757416869593,0.0002,4343.6,4343.5,36.73126499]
[1757416869796,0.0002,4343.6,4343.5,37.19196499]
[1757416869997,0.0002,4343.6,4343.5,38.96676499]
[1757416870199,0.0002,4343.6,4343.5,41.08705571]
[1757416870410,1e-08,4343.9,4343.8,2.30213177]
[1757416870612,1e-08,4343.9,4343.8,36.77034524]
[1757416870775,1e-08,4343.9,4343.8,37.08584524]
[1757416871117,1e-08,4343.9,4343.8,39.32134524]
[1757416872589,1e-08,4343.9,4343.8,38.9887148]
[1757416873313,1e-08,4343.9,4343.8,38.5280148]
[1757416874882,1e-08,4343.9,4343.8,36.4377148]
[1757416876415,0.74930001,4343.9,4343.8,30.0]
[1757416876715,2.33410001,4343.9,4343.7,2.30218409]
[1757416876917,2.0325,4343.8,4343.7,2.30218409]
[1757416877122,2.3341,4343.8,4343.7,2.30218409]
[1757416877474,0.7493,4343.8,4343.7,2.30218409]
[1757416880742,0.3016,4343.8,4343.7,2.41658409]
[1757416881138,0.7493,4343.8,4343.7,2.41658409]
[1757416881343,0.7493,4343.8,4343.7,2.30218409]
[1757416883744,0.7493,4343.8,4343.3,1.23560825]
[1757416883745,2.54357,4343.8,4343.3,1.23560825]
[1757416884025,2.0317,4343.7,4343.2,2.30243643]
[1757416884532,0.3016,4343.3,4343.2,2.30243643]
[1757416884688,0.3016,4343.3,4343.0,3.0]
[1757416884893,0.3016,4343.3,4343.1,2.3024807]
[1757416885107,0.3016,4343.3,4343.2,2.3024498]
[1757416886184,0.7493,4343.3,4343.2,2.3024498]
[1757416886623,0.7493,4343.3,4342.9,6.5382052]
[1757416886824,0.7493,4343.3,4343.1,3.0]
[1757416887186,0.7493,4343.3,4343.0,2.30255583]
[1757416887388,0.3016,4343.3,4343.2,2.3024498]
[1757416887582,0.4477,4343.7,4343.4,2.30231359]
[1757416887825,0.4477,4343.6,4343.5,2.30226466]
[1757416888130,0.7493,4343.6,4343.4,2.3023288]
[1757416889112,0.4477,4343.5,4343.2,3.0]
[1757416889431,0.3016,4343.3,4343.0,4.23560825]
[1757416889627,0.3016,4343.3,4343.0,6.01040825]
[1757416889816,0.3016,4343.3,4343.2,2.3024498]
[1757416890727,0.4477,4343.7,4343.3,2.30237861]
[1757416891101,0.3016,4343.4,4343.3,2.30237861]
[1757416891927,0.4477,4343.6,4343.4,2.30232426]
[1757416892105,0.4477,4343.6,4343.3,2.3023831]
[1757416892307,1e-08,4343.9,4343.3,2.3043831]
[1757416892522,0.468,4343.8,4343.3,2.3043831]
[1757416892723,1e-08,4343.9,4343.4,2.30232246]
[1757416892921,0.468,4343.7,4343.3,0.002]
[1757416893101,0.468,4343.7,4343.4,2.30232671]
[1757416893297,0.00100001,4343.9,4343.3,0.002]
[1757416893298,0.00100001,4343.9,4343.6,0.2925]
[1757416893613,0.00100001,4343.9,4343.8,5.30213177]
[1757416893996,0.00100001,4343.9,4343.8,7.69533177]
[1757416895428,0.00100001,4343.9,4343.8,17.69533177]
[1757416895630,0.78330001,4343.9,4343.8,13.0]
[1757416895938,0.78330001,4343.9,4343.4,4.23560825]
[1757416896099,0.468,4343.8,4343.4,3.0]
[1757416896298,0.3143,4343.5,4343.4,3.0]
[1757416896534,0.7823,4343.5,4343.3,1.23760825]
[1757416896846,0.3143,4343.5,4343.4,2.30234378]
[1757416898839,0.7823,4343.5,4343.4,3.0]
[1757416899013,0.7823,4343.5,4343.4,2.30234378]
[1757416899210,0.7823,4343.5,4343.3,3.53998885]
[1757416899404,0.3143,4343.5,4343.4,3.0]
[1757416899604,0.3143,4343.5,4343.4,2.30234378]
[1757416900358,0.7823,4343.5,4343.3,1.23760825]
[1757416900664,0.468,4343.4,4343.3,1.23760825]
[1757416900840,0.7823,4343.4,4343.3,1.23760825]
[1757416901757,0.7823,4343.4,4343.3,3.54000504]
[1757416902151,0.3143,4343.4,4343.3,3.54000504]
[1757416902339,0.3143,4343.4,4343.3,2.30439679]
[1757416902750,0.468,4343.7,4343.5,2.30227851]
[1757416903268,0.3143,4343.6,4343.5,2.30227851]
[1757416904254,0.1144,4343.8,4343.6,5.30222104]
[1757416904770,0.3143,4343.7,4343.6,5.30222104]
[1757416904971,0.3143,4343.7,4343.6,3.0]
[1757416906238,0.3143,4343.7,4343.6,4.23866325]
[1757416906777,0.3143,4343.7,4343.6,3.54090102]
[1757416907471,0.1144,4343.8,4343.6,3.54090102]
[1757416907698,0.1144,4343.8,4343.7,8.93404802]
[1757416907874,0.00100001,4343.9,4343.8,5.30213177]
[1757416908053,0.00100001,4343.9,4343.8,7.84183177]
[1757416908386,0.00100001,4343.9,4343.8,8.13433177]
[1757416908847,0.00100001,4343.9,4343.8,7.69533177]
[1757416909881,0.00100001,4343.9,4343.8,8.13433177]
[1757416910061,0.00100001,4343.9,4343.8,7.69533177]
[1757416910267,0.00020001,4343.9,4343.8,7.69533177]
[1757416912575,0.00020001,4343.9,4343.8,2.30213177]
[1757416912883,0.31450001,4343.9,4343.7,3.0]
[1757416913087,0.78250001,4343.9,4343.6,0.1164]
[1757416913448,0.31450001,4343.9,4343.6,0.1164]
[1757416913650,0.31450001,4343.9,4343.7,2.30218477]
[1757416914995,0.31450001,4343.9,4343.7,5.30218477]
[1757416915598,0.31450001,4343.9,4343.7,3.0]
[1757416915806,0.468,4343.8,4343.7,1.24077227]
[1757416916101,0.8967,4343.8,4343.6,1.24277227]
[1757416916283,0.4287,4343.8,4343.7,1.24077227]
[1757416916701,0.4287,4343.8,4343.7,3.54295704]
[1757416916909,0.4287,4343.8,4343.7,2.30218477]
[1757416918619,0.1144,4343.8,4343.7,2.30218477]
[1757416919987,0.4287,4343.8,4343.7,2.30218477]
[1757416920783,0.4287,4343.8,4343.6,2.3042211]
[1757416921179,0.8967,4343.8,4343.6,0.002]
[1757416921509,0.4626,4343.7,4343.6,0.002]
[1757416921681,0.4287,4343.8,4343.6,0.002]
[1757416921881,0.1144,4343.8,4343.6,2.30418478]
[1757416922123,0.1144,4343.8,4343.7,2.30218477]
[1757416922509,0.8926,4343.8,4343.6,0.002]
[1757416922931,0.8926,4343.8,4343.7,5.59758477]
[1757416922932,0.1144,4343.8,4343.7,5.59758477]
[1757416923426,0.1144,4343.8,4343.7,7.59978477]
[1757416924913,0.00020001,4343.9,4343.8,2.30213177]
[1757416925115,0.00020001,4343.9,4343.8,4.74943177]
[1757416925320,0.00020001,4343.9,4343.8,5.04483177]
[1757416926240,0.00020001,4343.9,4343.8,4.59973177]
[1757416926438,0.00020001,4343.9,4343.8,14.59973177]
[1757416926739,0.00020001,4343.9,4343.8,45.04483177]
[1757416926914,0.00020001,4343.9,4343.8,36.69408896]
[1757416927309,0.00020001,4343.9,4343.8,38.69784064]
[1757416927512,0.00020001,4343.9,4343.8,38.81224064]
[1757416928797,0.00020001,4343.9,4343.8,8.81224064]
[1757416928998,0.00020001,4343.9,4343.8,10.13043345]
[1757416929232,0.00020001,4343.9,4343.8,40.13043345]
[1757416930793,0.00020001,4343.9,4343.8,39.81005502]
[1757416930930,0.00020001,4343.9,4343.8,39.47742458]
[1757416931890,0.00020001,4343.9,4343.8,9.47742458]
[1757416932225,0.00020001,4343.9,4343.8,39.81005502]
[1757416933475,0.00020001,4343.9,4343.8,40.13043345]
[1757416934771,23.45792341,4344.2,4344.0,2.30202578]
[1757416935073,23.45792341,4344.2,4344.1,46.34723723]
[1757416935074,1e-08,4344.2,4344.1,46.34723723]
[1757416935283,1e-08,4344.2,4344.1,39.08993723]
[1757416935428,1e-08,4344.2,4344.1,41.38569034]
[1757416935765,1e-08,4344.2,4344.1,39.32023723]
[1757416936138,1e-08,4344.2,4344.1,39.08993723]
[1757416936324,0.00020001,4344.4,4344.3,2.30186681]
[1757416936528,0.00020001,4344.4,4344.3,36.62005962]
[1757416936845,0.00020001,4344.4,4344.3,38.91765962]
[1757416937766,0.00020001,4344.4,4344.3,40.56624823]
[1757416937977,0.00020001,4344.4,4344.3,40.27084823]
[1757416938172,0.77840001,4344.4,4344.3,36.62005962]
[1757416938326,0.00020001,4344.4,4344.3,36.62005962]
[1757416938966,0.00020001,4344.4,4344.3,6.62005962]
[1757416939271,0.00020001,4344.4,4344.3,9.25029006]
[1757416939469,0.00020001,4344.4,4344.3,40.01576849]
[1757416940269,0.00020001,4344.4,4344.3,40.13016849]
[1757416945245,0.00020001,4344.4,4344.3,39.03205962]
[1757416945462,0.00020001,4344.4,4344.3,39.47715962]
[1757416946781,0.00020001,4344.4,4344.3,39.80979006]
[1757416947646,0.00020001,4344.4,4344.3,39.81179006]
[1757416949400,0.00020001,4344.4,4344.3,40.13216849]
[1757416950095,0.041,4344.9,4344.4,35.3018036]
[1757416950401,0.001,4346.4,4345.3,2.30133707]
[1757416950608,0.001,4346.4,4345.3,35.92936751]
[1757416950765,0.001,4346.4,4345.3,36.24974594]
[1757416950964,0.001,4346.4,4345.3,38.69704594]
[1757416951177,0.001,4346.4,4345.3,40.01523875]
[1757416951498,1e-08,4345.4,4345.3,39.47858796]
[1757416951813,0.001,4346.4,4345.7,2.30112525]
[1757416952122,0.001,4346.4,4345.7,37.60041489]
[1757416952255,0.001,4346.4,4345.7,38.18327046]
[1757416952459,0.001,4346.4,4345.7,40.60337046]
[1757416952907,0.001,4346.4,4345.7,40.13767046]
[1757416953109,0.001,4346.4,4345.7,40.60337046]
[1757416953480,0.001,4346.4,4345.7,10.60337046]
[1757416953937,0.001,4346.4,4345.7,40.60337046]
[1757416956653,0.001,4346.4,4345.7,40.83367046]
[1757416957685,0.4586,4346.4,4345.7,40.83367046]
[1757416958579,0.4586,4346.4,4345.7,38.49138969]
[1757416958580,1e-08,4345.8,4345.7,38.49138969]
[1757416958822,0.001,4346.4,4345.8,5.95408115]
[1757416959022,0.4576,4346.3,4345.8,36.6192651]
[1757416959185,0.001,4346.4,4345.8,36.9242651]
[1757416959385,0.001,4346.4,4345.8,39.3443651]
[1757416960451,0.001,4346.4,4345.8,39.4587651]
[1757416961514,0.001,4346.4,4345.8,38.9930651]
[1757416962425,28.3302,4345.9,4345.8,38.9930651]
[1757416964536,28.3302,4345.9,4345.8,40.11177397]
[1757416967645,28.3302,4345.9,4345.8,39.64607397]
[1757416967825,28.6442,4345.9,4345.8,36.7336651]
[1757416968029,29.1018,4345.9,4345.8,36.7336651]
[1757416968324,29.1018,4345.9,4345.8,38.37875778]
[1757416968527,29.1018,4345.9,4345.8,36.7336651]
[1757416970568,28.3302,4345.9,4345.8,36.7336651]
[1757416971128,28.6442,4345.9,4345.8,36.7336651]
[1757416971555,29.1018,4345.9,4345.8,36.7336651]
[1757416974777,29.1018,4345.9,4345.8,6.7336651]
[1757416975070,29.1018,4345.9,4345.8,36.7336651]
[1757416975778,29.1018,4345.9,4345.8,6.7336651]
[1757416975936,29.1018,4345.9,4345.8,36.7336651]
[1757416977075,28.6442,4345.9,4345.8,36.7336651]
[1757416977779,29.1018,4345.9,4345.8,36.7336651]
[1757416979571,29.1018,4345.9,4345.8,38.79911821]
[1757416980343,25.99811025,4345.9,4345.8,38.79911821]
[1757416981342,25.99811025,4345.9,4345.8,36.7336651]
[1757416982862,25.22651025,4345.9,4345.8,37.0485651]
[1757416983083,25.22651025,4345.9,4345.8,39.79307397]
[1757416983279,25.22651025,4345.9,4345.8,42.29002708]
[1757416983792,25.22651025,4345.9,4345.8,40.22457397]
[1757416984156,7.79984011,4345.9,4345.8,40.22457397]
[1757416984759,7.79984011,4345.9,4345.8,40.22657397]
[1757416984991,7.80084011,4345.9,4345.8,40.22657397]
[1757416985665,7.80084011,4345.9,4345.8,39.90619554]
[1757416986396,5.05526287,4345.9,4345.8,39.90619554]
[1757416987593,5.05526287,4345.9,4345.8,40.22657397]
[1757416987953,5.05526287,4345.9,4345.8,36.7356651]
[1757416988158,5.35846287,4345.9,4345.8,36.7356651]
[1757416988670,5.05446287,4345.9,4345.8,39.1420651]
[1757416988880,5.35766287,4345.9,4345.8,36.7356651]
[1757416989966,5.79976287,4345.9,4345.8,38.8025827]
[1757416990366,2.6960928,4345.9,4345.8,38.8025827]
[1757416991757,2.6960928,4345.9,4345.8,36.7356651]
[1757416996124,1.9507928,4345.9,4345.8,37.0505651]
[1757416996324,1.9507928,4345.9,4345.8,39.79507397]
[1757416997033,1.9507928,4345.9,4345.8,40.22657397]
[1757417000451,0.54204132,4345.9,4345.8,40.22657397]
[1757417000955,1e-08,4345.9,4345.8,40.22657397]
[1757417002142,1e-08,4345.9,4345.8,39.79507397]
[1757417002355,0.026,4346.8,4345.8,39.79507397]
[1757417002356,1e-08,4346.8,4346.7,3.09259585]
[1757417002557,1e-08,4346.8,4346.7,36.74560472]
[1757417002758,1e-08,4346.8,4346.7,37.06050472]
[1757417002919,1e-08,4346.8,4346.7,39.58350472]
[1757417003349,1e-08,4346.9,4346.8,5.30054292]
[1757417003550,1e-08,4346.9,4346.8,41.85745981]
[1757417003753,1e-08,4346.9,4346.8,42.17235981]
[1757417003939,0.05,4347.8,4346.8,42.17235981]
[1757417003940,9.84,4347.1,4346.8,42.17235981]
[1757417004141,0.05,4347.8,4347.2,2.30029796]
[1757417004458,0.05,4347.8,4347.4,3.3149]
[1757417004636,0.05,4347.8,4347.4,36.17053044]
[1757417005464,0.05,4347.8,4347.4,38.47075586]
[1757417006364,0.05,4347.8,4347.4,38.79113429]
[1757417010981,0.05,4347.8,4347.4,38.04473429]
[1757417011184,0.05,4347.8,4347.4,37.2714271]
[1757417011398,0.4921,4347.8,4347.4,38.91571765]
[1757417011772,0.4921,4347.8,4347.4,39.21141765]
[1757417011995,0.05,4347.8,4347.4,41.19951765]
[1757417012303,0.05,4347.8,4347.4,40.99353922]
[1757417013005,0.05,4347.8,4347.4,41.78221765]
[1757417013182,0.05,4347.8,4347.4,40.1379271]
[1757417013696,0.05,4347.8,4347.4,39.6696271]
[1757417014011,0.05,4347.8,4347.4,40.1379271]
[1757417014808,7.3802,4347.5,4347.4,40.1379271]
[1757417015702,7.6716,4347.5,4347.4,37.3858271]
[1757417015904,7.3802,4347.5,4347.4,37.6815271]
[1757417016098,7.3802,4347.5,4347.4,39.6696271]
[1757417023046,7.3802,4347.5,4347.4,40.1379271]
[1757417024208,0.001,4348.0,4347.7,2.3000667]
[1757417024456,0.001,4348.0,4347.9,5.2999609]
[1757417024664,0.001,4348.0,4347.9,35.91603933]
[1757417024824,0.001,4348.0,4347.9,36.24866977]
[1757417025017,0.001,4348.0,4347.9,38.70506977]
[1757417025221,0.001,4348.0,4347.9,40.02326258]
[1757417025438,1e-08,4348.2,4348.1,2.2998551]
[1757417025644,1e-08,4348.2,4348.1,36.0918551]
[1757417025838,1e-08,4348.2,4348.1,39.49696397]
[1757417026356,1e-08,4348.2,4348.1,38.3756551]
[1757417026533,1e-08,4348.2,4348.1,39.12181067]
[1757417027663,1e-08,4348.2,4348.1,36.36971067]
[1757417027821,0.29140001,4348.2,4348.1,35.57771067]
[1757417028026,1e-08,4348.2,4348.1,35.57771067]
[1757417028222,1e-08,4348.2,4348.1,37.86151067]
[1757417028663,1e-08,4348.2,4348.1,38.32981067]
[1757417028834,1e-08,4348.2,4348.1,39.12181067]
[1757417029041,1e-08,4348.2,4348.1,39.4421891]
[1757417029365,1e-08,4348.2,4348.1,38.9738891]
[1757417029564,1e-08,4348.2,4348.1,39.75136571]
[1757417029764,0.025,4348.8,4348.3,2.29974932]
[1757417029941,0.025,4348.8,4348.3,36.61794213]
[1757417030145,0.025,4348.8,4348.3,39.37004213]
[1757417030551,0.025,4348.8,4348.3,38.90174213]
[1757417031564,0.025,4348.8,4348.3,40.96445734]
[1757417031868,0.025,4348.8,4348.3,41.43275734]
[1757417034482,0.025,4348.8,4348.3,41.54715734]
[1757417034690,0.025,4348.8,4348.3,42.33915734]
[1757417036687,0.025,4348.8,4348.3,12.33915734]
[1757417036888,0.025,4348.8,4348.3,42.33915734]
[1757417039715,0.025,4348.8,4348.3,41.87085734]
[1757417039922,6.73966299,4348.4,4348.3,41.87085734]
[1757417040429,7.47446299,4348.4,4348.3,36.73234213]
[1757417040920,7.47366299,4348.4,4348.3,36.73234213]
[1757417042440,7.03026299,4348.4,4348.3,36.73234213]
[1757417042727,6.73886299,4348.4,4348.3,36.73234213]
[1757417042931,6.73886299,4348.4,4348.3,40.11802056]
[1757417043150,6.73886299,4348.4,4348.3,40.98709717]
[1757417044391,6.73886299,4348.4,4348.3,43.04981238]
[1757417045786,0.025,4348.8,4348.7,6.09153779]
[1757417045985,0.025,4348.8,4348.7,38.43210857]
[1757417046422,0.025,4348.8,4348.7,39.12144918]
[1757417046925,0.025,4348.8,4348.7,39.42514918]
[1757417047145,0.025,4348.8,4348.7,41.50914918]
[1757417047523,0.025,4348.8,4348.7,40.71714918]
[1757417047936,0.025,4348.8,4348.7,41.50914918]
[1757417049917,0.00792203,4348.8,4348.7,41.50914918]
[1757417050111,0.31302203,4348.8,4348.7,39.12144918]
[1757417050348,0.77452203,4348.8,4348.7,38.32944918]